[Event "Turkish Cup 2024"]
[Site "Denizli"]
[Date "2024.08.02"]
[Round "5"]
[White "Sozat, Arda"]
[Black "Tirpan, Ceren"]
[Result "1/2-1/2"]
[ECO "A36"]
[WhiteElo "1836"]
[BlackElo "1926"]
[Annotator "RC"]
[PlyCount "126"]
[EventDate "2024.08.01"]
[EventType "swiss"]
[EventCountry "TUR"]
[SourceTitle "playchess.com"]
[Source "ChessBase"]
[SourceQuality "1"]
[TimeControl "5400+30"]

1. e4 {[%emt 0:02:00]} c5 {[%emt 0:01:00]} 2. Nf3 {[%emt 0:00:30]} e6 {[%emt 0:00:30]} 3. c4 {[%emt 0:00:30]} Nc6 {[%emt 0:00:30]} 4. Nc3 {[%emt 0:00:30]} Nd4 {[%emt 0:00:30]} 5. d3 {[%emt 0:00:30]} Ne7 {[%emt 0:00:30]} 6. Be3 {[%emt 0:04:30]} Nec6 {[%emt 0:00:30]} 7. g3 {[%emt 0:00:30]} g6 {[%emt 0:03:30]} 8. Bg2 {[%emt 0:02:30]} Bg7 {[%emt 0:04:30]} 9. O-O {[%emt 0:00:30]} O-O {[%emt 0:03:30]} 10. Nb5 {[%emt 0:07:30]} Nxb5 {[%emt 0:06:30]} 11. cxb5 {[%emt 0:00:30]} Nd4 {[%emt 0:00:30]} 12. Nxd4 {[%emt 0:00:30]} cxd4 {[%emt 0:00:30]} 13. Bd2 {[%emt 0:00:30]} a6 {[%emt 0:11:30]} 14. Qb3 {[%emt 0:08:30]} d6 {[%emt 0:10:30]} 15. Rfc1 {[%emt 0:03:30]} Qb6 {[%emt 0:15:30]} 16. bxa6 {[%emt 0:10:30]} Qxa6 {[%emt 0:00:30]} 17. Rc7 {[%emt 0:02:30]} e5 {[%emt 0:07:30]} 18. Qc4 {[%emt 0:23:30]} Qb6 {[%emt 0:04:30]} 19. Rc1 {[%emt 0:02:30]} Qxb2 {[%emt 0:06:30]} 20. Rc2 {[%emt 0:02:30]} Qb1+ {[%emt 0:00:30]} 21. Rc1 {[%emt 0:00:30]} Qxa2 {[%emt 0:00:30]} 22. Qxa2 {[%emt 0:00:30]} Rxa2 {[%emt 0:00:30]} 23. Bb4 {[%emt 0:02:30]} Be6 {[%emt 0:05:01]} 24. Rxb7 {[%emt 0:05:30]} Rb2 {[%emt 0:05:22]} 25. Rb6 {[%emt 0:00:23]} Bh6 {[%emt 0:00:36]} 26. Ra1 {[%emt 0:01:11]} Rc8 {[%emt 0:01:42]} 27. Bc5 {[%emt 0:00:29]} Rc2 {[%emt 0:00:30]} 28. Ba3 {[%emt 0:03:17]} Bc1 {[%emt 0:02:17]} 29. Bxd6 {[%emt 0:01:22]} Bb2 {[%emt 0:00:08]} 30. Rf1 {[%emt 0:00:00]} f6 {[%emt 0:07:41]} 31. Bxe5 {[%emt 0:00:51]} fxe5 {[%emt 0:00:30]} 32. Rxe6 {[%emt 0:00:00]} Rd2 {[%emt 0:00:00]} 33. Rb6 {[%emt 0:02:58]} Rcc2 {[%emt 0:00:48]} 34. Bh3 {[%emt 0:02:38]} Bc1 {[%emt 0:01:37]} 35. Be6+ {[%emt 0:00:46]} Kg7 {[%emt 0:00:30]} 36. Rb7+ {[%emt 0:00:00]} Kh8 {[%emt 0:00:41]} 37. Bc4 {[%emt 0:00:13]} Re2 {[%emt 0:00:19]} 38. Rf7 {[%emt 0:06:35]} Rxc4 {[%emt 0:00:44]} 39. dxc4 {[%emt 0:01:21]} d3 {[%emt 0:00:11]} 40. Rd1 {[%emt 0:00:11]} d2 {[%emt 0:00:30]} 41. Kf1 {[%emt 0:00:00]} Rxe4 {[%emt 0:00:00]} 42. c5 {[%emt 0:01:21]} Rc4 {[%emt 0:00:11]} 43. Rc7 {[%emt 0:00:00]} Kg8 {[%emt 0:01:26]} 44. Ke2 {[%emt 0:02:12]} Re4+ {[%emt 0:00:04]} 45. Kd3 {[%emt 0:01:04]} Rd4+ {[%emt 0:00:08]} 46. Kc2 {[%emt 0:01:00]} Rc4+ {[%emt 0:00:19]} 47. Kb3 {[%emt 0:00:00]} Rd4 {[%emt 0:00:57]} 48. c6 {[%emt 0:00:07]} Rd6 {[%emt 0:01:06]} 49. Kc2 {[%emt 0:00:00]} Kf8 {[%emt 0:00:23]} 50. Rxc1 {[%emt 0:02:40]} dxc1=Q+ {[%emt 0:00:09]} 51. Kxc1 {[%emt 0:00:00]} h5 {[%emt 0:00:17]} 52. Rc8+ {[%emt 0:00:56]} Ke7 {[%emt 0:00:35]} 53. Rc7+ {[%emt 0:01:00]} Kd8 {[%emt 0:00:48]} 54. Rd7+ {[%emt 0:00:17]} Rxd7 {[%emt 0:00:30]} 55. cxd7 {[%emt 0:00:30]} Kxd7 {[%emt 0:00:00]} 56. h4 {[%emt 0:00:15]} Ke6 {[%emt 0:00:09]} 57. Kd2 {[%emt 0:00:00]} Kf5 {[%emt 0:00:20]} 58. Ke3 {[%emt 0:00:16]} g5 {[%emt 0:01:09]} 59. hxg5 {[%emt 0:00:30]} Kxg5 {[%emt 0:00:00]} 60. f4+ {[%emt 0:00:40]} exf4+ {[%emt 0:00:05]} 61. gxf4+ {[%emt 0:00:16]} Kg4 {[%emt 0:00:07]} 62. Kf2 {[%emt 0:00:30]} Kxf4 {[%emt 0:00:30]} 63. Kg2 {[%emt 0:00:00]} Ke5 {[%emt 0:00:00]} 1/2-1/2

[Event "Turkish Cup 2024"]
[Site "Denizli"]
[Date "2024.08.02"]
[Round "5"]
[White "Seker, Cinar"]
[Black "Dargali, Hakan"]
[Result "1/2-1/2"]
[ECO "B40"]
[WhiteElo "1815"]
[BlackElo "1973"]
[Annotator "RC"]
[PlyCount "123"]
[EventDate "2024.08.01"]
[EventType "swiss"]
[EventCountry "TUR"]
[SourceTitle "playchess.com"]
[Source "ChessBase"]
[SourceQuality "1"]
[TimeControl "5400+30"]

1. e4 {[%emt 0:01:00]} c5 {[%emt 0:03:00]} 2. Nf3 {[%emt 0:00:30]} e6 {[%emt 0:00:30]} 3. b3 {[%emt 0:00:00]} d5 {[%emt 0:00:00]} 4. Bb5+ {[%emt 0:00:00]} Bd7 {[%emt 0:00:00]} 5. Bxd7+ {[%emt 0:00:30]} Qxd7 {[%emt 0:00:30]} 6. exd5 {[%emt 0:00:30]} Qxd5 {[%emt 0:00:00]} 7. Nc3 {[%emt 0:05:30]} Qd8 {[%emt 0:00:00]} 8. Bb2 {[%emt 0:00:30]} Nf6 {[%emt 0:00:00]} 9. O-O {[%emt 0:00:30]} Nc6 {[%emt 0:00:00]} 10. Re1 {[%emt 0:00:30]} Be7 {[%emt 0:00:30]} 11. Qe2 {[%emt 0:00:30]} a6 {[%emt 0:00:30]} 12. Rad1 {[%emt 0:03:30]} O-O {[%emt 0:00:30]} 13. Ne4 {[%emt 0:02:30]} Nxe4 {[%emt 0:00:30]} 14. Qxe4 {[%emt 0:00:30]} Bf6 {[%emt 0:00:00]} 15. Bxf6 {[%emt 0:01:30]} Qxf6 {[%emt 0:00:00]} 16. d4 {[%emt 0:00:30]} cxd4 {[%emt 0:00:00]} 17. Nxd4 {[%emt 0:00:30]} Rac8 {[%emt 0:00:00]} 18. Nxc6 {[%emt 0:01:30]} Rxc6 {[%emt 0:00:00]} 19. Rd7 {[%emt 0:03:30]} Rd8 {[%emt 0:03:00]} 20. Qd3 {[%emt 0:04:30]} Rxd7 {[%emt 0:02:30]} 21. Qxd7 {[%emt 0:00:00]} g6 {[%emt 0:00:00]} 22. c4 {[%emt 0:00:00]} Qc3 {[%emt 0:04:00]} 23. Rd1 {[%emt 0:00:30]} Qb4 {[%emt 0:00:30]} 24. g3 {[%emt 0:00:30]} Kg7 {[%emt 0:02:30]} 25. Rd3 {[%emt 0:05:30]} e5 {[%emt 0:02:30]} 26. Rf3 {[%emt 0:03:30]} Rf6 {[%emt 0:01:30]} 27. Rxf6 {[%emt 0:00:30]} Kxf6 {[%emt 0:00:30]} 28. Qd5 {[%emt 0:01:30]} b6 {[%emt 0:01:30]} 29. h4 {[%emt 0:05:30]} h5 {[%emt 0:00:30]} 30. Qa8 {[%emt 0:07:30]} a5 {[%emt 0:03:30]} 31. Qh8+ {[%emt 0:00:30]} Kf5 {[%emt 0:01:30]} 32. Qc8+ {[%emt 0:00:00]} Kf6 {[%emt 0:00:30]} 33. Qh8+ {[%emt 0:00:00]} Ke6 {[%emt 0:00:30]} 34. Qe8+ {[%emt 0:00:30]} Qe7 {[%emt 0:05:30]} 35. Qa8 {[%emt 0:05:30]} Qc5 {[%emt 0:01:30]} 36. Kg2 {[%emt 0:00:30]} Qd4 {[%emt 0:01:30]} 37. Qe8+ {[%emt 0:01:30]} Kf6 {[%emt 0:00:00]} 38. Qh8+ {[%emt 0:00:30]} Ke7 {[%emt 0:00:00]} 39. Qa8 {[%emt 0:01:30]} Qd6 {[%emt 0:06:30]} 40. Qe4 {[%emt 0:01:30]} Kf6 {[%emt 0:02:30]} 41. a3 {[%emt 0:06:30]} Ke6 {[%emt 0:07:30]} 42. Qb7 {[%emt 0:00:30]} Qc5 {[%emt 0:01:30]} 43. Kg1 {[%emt 0:03:30]} Kf6 {[%emt 0:00:30]} 44. Qf3+ {[%emt 0:01:30]} Kg7 {[%emt 0:00:30]} 45. Qc3 {[%emt 0:00:30]} f6 {[%emt 0:11:30]} 46. b4 {[%emt 0:00:00]} axb4 {[%emt 0:00:30]} 47. axb4 {[%emt 0:00:00]} Qc6 {[%emt 0:00:30]} 48. c5 {[%emt 0:01:30]} bxc5 {[%emt 0:00:30]} 49. bxc5 {[%emt 0:00:00]} Kf7 {[%emt 0:00:00]} 50. Qc4+ {[%emt 0:00:00]} Ke7 {[%emt 0:00:00]} 51. Kf1 {[%emt 0:03:30]} g5 {[%emt 0:00:30]} 52. hxg5 {[%emt 0:00:30]} fxg5 {[%emt 0:00:30]} 53. Ke2 {[%emt 0:00:30]} g4 {[%emt 0:02:30]} 54. Qc2 {[%emt 0:05:30]} Qf3+ {[%emt 0:09:30]} 55. Ke1 {[%emt 0:00:30]} Qh1+ {[%emt 0:00:30]} 56. Kd2 {[%emt 0:00:30]} Qd5+ {[%emt 0:00:00]} 57. Kc1 {[%emt 0:00:00]} Kd7 {[%emt 0:04:00]} 58. Qf5+ {[%emt 0:05:00]} Kc6 {[%emt 0:00:30]} 59. Qxh5 {[%emt 0:00:30]} Qxc5+ {[%emt 0:00:30]} 60. Kd1 {[%emt 0:00:30]} Qxf2 {[%emt 0:01:30]} 61. Qxe5 {[%emt 0:00:30]} Qc5 {[%emt 0:00:30]} 62. Qe6+ {[%emt 0:02:30]} 1/2-1/2

[Event "Turkish Cup 2024"]
[Site "Denizli"]
[Date "2024.08.02"]
[Round "5"]
[White "Zeyrek, Ayaz"]
[Black "Ozgun, Yigit Deniz"]
[Result "1/2-1/2"]
[ECO "D87"]
[WhiteElo "1798"]
[BlackElo "1973"]
[Annotator "RC"]
[PlyCount "204"]
[EventDate "2024.08.01"]
[EventType "swiss"]
[EventCountry "TUR"]
[SourceTitle "playchess.com"]
[Source "ChessBase"]
[SourceQuality "1"]
[TimeControl "5400+30"]

1. d4 {[%emt 0:01:00]} Nf6 {[%emt 0:08:00]} 2. c4 {[%emt 0:00:00]} g6 {[%emt 0:01:30]} 3. Nc3 {[%emt 0:00:00]} d5 {[%emt 0:00:00]} 4. cxd5 {[%emt 0:01:30]} Nxd5 {[%emt 0:00:00]} 5. e4 {[%emt 0:00:30]} Nxc3 {[%emt 0:00:30]} 6. bxc3 {[%emt 0:00:30]} Bg7 {[%emt 0:00:30]} 7. Bc4 {[%emt 0:00:30]} c5 {[%emt 0:00:30]} 8. Ne2 {[%emt 0:00:30]} Nc6 {[%emt 0:00:30]} 9. Be3 {[%emt 0:00:30]} O-O {[%emt 0:00:30]} 10. O-O {[%emt 0:00:30]} b6 {[%emt 0:00:00]} 11. Bd5 {[%emt 0:02:30]} Qc7 {[%emt 0:33:00]} 12. dxc5 {[%emt 0:09:30]} e6 {[%emt 0:01:30]} 13. cxb6 {[%emt 0:04:30]} axb6 {[%emt 0:00:30]} 14. Bb3 {[%emt 0:03:30]} Na5 {[%emt 0:01:30]} 15. Bd4 {[%emt 0:02:30]} Ba6 {[%emt 0:08:30]} 16. Qd2 {[%emt 0:12:30]} Rfd8 {[%emt 0:14:30]} 17. Qe3 {[%emt 0:07:30]} Bxd4 {[%emt 0:01:30]} 18. cxd4 {[%emt 0:00:30]} Bxe2 {[%emt 0:00:30]} 19. Qxe2 {[%emt 0:00:00]} Rxd4 {[%emt 0:04:30]} 20. Rad1 {[%emt 0:03:00]} Rad8 {[%emt 0:01:30]} 21. Rxd4 {[%emt 0:00:00]} Rxd4 {[%emt 0:00:30]} 22. Rd1 {[%emt 0:00:00]} Qd6 {[%emt 0:00:30]} 23. Rxd4 {[%emt 0:01:30]} Qxd4 {[%emt 0:00:30]} 24. g3 {[%emt 0:00:00]} Qc3 {[%emt 0:03:44]} 25. Qd1 {[%emt 0:01:00]} Nc6 {[%emt 0:00:24]} 26. Qc2 {[%emt 0:04:30]} Qxc2 {[%emt 0:03:51]} 27. Bxc2 {[%emt 0:00:30]} Nd4 {[%emt 0:00:00]} 28. Bd3 {[%emt 0:02:30]} Nf3+ {[%emt 0:00:50]} 29. Kf1 {[%emt 0:01:30]} Nxh2+ {[%emt 0:00:30]} 30. Ke2 {[%emt 0:00:30]} Ng4 {[%emt 0:00:30]} 31. f4 {[%emt 0:00:30]} Kf8 {[%emt 0:00:30]} 32. e5 {[%emt 0:00:30]} h5 {[%emt 0:00:30]} 33. Kf3 {[%emt 0:00:30]} Ke7 {[%emt 0:00:30]} 34. a4 {[%emt 0:00:30]} Nh6 {[%emt 0:00:00]} 35. Bb1 {[%emt 0:05:30]} Kd7 {[%emt 0:00:13]} 36. Bd3 {[%emt 0:01:30]} Nf5 {[%emt 0:00:15]} 37. g4 {[%emt 0:02:30]} Ng7 {[%emt 0:04:10]} 38. gxh5 {[%emt 0:02:30]} Nxh5 {[%emt 0:01:54]} 39. Bb5+ {[%emt 0:02:30]} Ke7 {[%emt 0:00:08]} 40. Kg4 {[%emt 0:00:00]} Ng7 {[%emt 0:00:28]} 41. Kg5 {[%emt 0:01:00]} Nf5 {[%emt 0:00:06]} 42. Bc4 {[%emt 0:01:30]} Ne3 {[%emt 0:00:13]} 43. Bd3 {[%emt 0:00:00]} Nd5 {[%emt 0:00:40]} 44. Bb5 {[%emt 0:00:00]} Kf8 {[%emt 0:02:04]} 45. Bd3 {[%emt 0:02:30]} Kg7 {[%emt 0:00:31]} 46. Bb1 {[%emt 0:00:30]} Nc7 {[%emt 0:00:17]} 47. Bd3 {[%emt 0:00:00]} Nd5 {[%emt 0:01:01]} 48. Bb1 {[%emt 0:00:00]} Nb4 {[%emt 0:00:00]} 49. Be4 {[%emt 0:00:30]} Na6 {[%emt 0:00:00]} 50. Bf3 {[%emt 0:00:30]} Nb8 {[%emt 0:00:03]} 51. Bg2 {[%emt 0:01:30]} Nd7 {[%emt 0:00:30]} 52. Be4 {[%emt 0:00:00]} Nf8 {[%emt 0:00:00]} 53. Bd3 {[%emt 0:01:00]} Nh7+ {[%emt 0:00:08]} 54. Kg4 {[%emt 0:00:30]} Kh6 {[%emt 0:00:02]} 55. Bc2 {[%emt 0:01:30]} Kg7 {[%emt 0:00:28]} 56. Bd3 {[%emt 0:01:30]} f5+ {[%emt 0:00:20]} 57. exf6+ {[%emt 0:00:00]} Kxf6 {[%emt 0:00:05]} 58. Be4 {[%emt 0:01:00]} Nf8 {[%emt 0:00:23]} 59. Bc6 {[%emt 0:00:30]} Ke7 {[%emt 0:00:01]} 60. Kg5 {[%emt 0:00:30]} Kf7 {[%emt 0:00:25]} 61. Be4 {[%emt 0:01:30]} Kg7 {[%emt 0:00:09]} 62. Bc6 {[%emt 0:00:30]} Nh7+ {[%emt 0:00:34]} 63. Kg4 {[%emt 0:00:30]} Kf6 {[%emt 0:00:00]} 64. Be4 {[%emt 0:00:00]} Nf8 {[%emt 0:00:00]} 65. Bc6 {[%emt 0:01:00]} e5 {[%emt 0:00:00]} 66. fxe5+ {[%emt 0:00:30]} Kxe5 {[%emt 0:00:00]} 67. Kg5 {[%emt 0:00:00]} Ke6 {[%emt 0:00:13]} 68. Bb5 {[%emt 0:00:00]} Kf7 {[%emt 0:00:04]} 69. Kf4 {[%emt 0:01:30]} Kf6 {[%emt 0:00:01]} 70. Ke4 {[%emt 0:00:30]} Ke6 {[%emt 0:00:06]} 71. Kd4 {[%emt 0:00:30]} Nd7 {[%emt 0:00:46]} 72. Be2 {[%emt 0:01:30]} Nc5 {[%emt 0:00:03]} 73. Bd1 {[%emt 0:00:30]} Kd6 {[%emt 0:00:03]} 74. Kc4 {[%emt 0:00:30]} g5 {[%emt 0:01:53]} 75. Kb5 {[%emt 0:01:30]} Nd7 {[%emt 0:00:02]} 76. Bg4 {[%emt 0:00:00]} Ne5 {[%emt 0:00:41]} 77. Bf5 {[%emt 0:00:00]} Nd7 {[%emt 0:00:58]} 78. Bg4 {[%emt 0:00:30]} Nf6 {[%emt 0:00:50]} 79. Bf3 {[%emt 0:01:30]} Nd5 {[%emt 0:00:12]} 80. Bg4 {[%emt 0:01:30]} Kc7 {[%emt 0:00:28]} 81. Be6 {[%emt 0:01:30]} Nc3+ {[%emt 0:00:12]} 82. Kb4 {[%emt 0:00:30]} Ne4 {[%emt 0:00:09]} 83. a5 {[%emt 0:00:30]} bxa5+ {[%emt 0:00:37]} 84. Kxa5 {[%emt 0:00:30]} Kd6 {[%emt 0:00:30]} 85. Bg4 {[%emt 0:00:00]} Nf6 {[%emt 0:00:42]} 86. Bh3 {[%emt 0:00:00]} Ke5 {[%emt 0:00:00]} 87. Kb4 {[%emt 0:00:30]} Nd5+ {[%emt 0:02:12]} 88. Kb3 {[%emt 0:00:30]} Kd4 {[%emt 0:00:37]} 89. Kb2 {[%emt 0:00:30]} Nf4 {[%emt 0:00:28]} 90. Bg4 {[%emt 0:00:00]} Nd3+ {[%emt 0:00:34]} 91. Ka3 {[%emt 0:00:00]} Ke3 {[%emt 0:00:51]} 92. Kb3 {[%emt 0:00:30]} Kf4 {[%emt 0:00:04]} 93. Bh3 {[%emt 0:00:30]} Nf2 {[%emt 0:00:12]} 94. Bc8 {[%emt 0:00:30]} Ne4 {[%emt 0:00:13]} 95. Kc2 {[%emt 0:00:30]} Ng3 {[%emt 0:01:04]} 96. Bh3 {[%emt 0:00:30]} Nf5 {[%emt 0:00:30]} 97. Kd3 {[%emt 0:00:00]} Nd6 {[%emt 0:00:00]} 98. Kc2 {[%emt 0:00:00]} Nb5 {[%emt 0:00:00]} 99. Kb2 {[%emt 0:00:30]} Na7 {[%emt 0:00:20]} 100. Ka1 {[%emt 0:00:30]} Kg3 {[%emt 0:00:00]} 101. Bd7 {[%emt 0:00:30]} g4 {[%emt 0:00:26]} 102. Bxg4 {[%emt 0:00:30]} Kxg4 {[%emt 0:00:00]} 1/2-1/2

[Event "Turkish Cup 2024"]
[Site "Denizli"]
[Date "2024.08.02"]
[Round "5"]
[White "Madsman, Berk"]
[Black "Cicek, Bilal Emre"]
[Result "1/2-1/2"]
[ECO "B40"]
[WhiteElo "1797"]
[BlackElo "1963"]
[Annotator "RC"]
[PlyCount "152"]
[EventDate "2024.08.01"]
[EventType "swiss"]
[EventCountry "TUR"]
[SourceTitle "playchess.com"]
[Source "ChessBase"]
[SourceQuality "1"]
[TimeControl "5400+30"]

1. e4 {[%emt 0:01:00]} c5 {[%emt 0:01:00]} 2. Nf3 {[%emt 0:00:30]} e6 {[%emt 0:00:00]} 3. g3 {[%emt 0:00:00]} Nc6 {[%emt 0:00:00]} 4. Bg2 {[%emt 0:00:00]} Nf6 {[%emt 0:00:00]} 5. Qe2 {[%emt 0:00:30]} d5 {[%emt 0:00:00]} 6. exd5 {[%emt 0:02:30]} Nxd5 {[%emt 0:00:30]} 7. O-O {[%emt 0:01:30]} Be7 {[%emt 0:00:00]} 8. d3 {[%emt 0:06:30]} O-O {[%emt 0:02:00]} 9. Nbd2 {[%emt 0:00:30]} Qc7 {[%emt 0:03:30]} 10. Ne4 {[%emt 0:03:30]} b5 {[%emt 0:04:30]} 11. c4 {[%emt 0:03:30]} bxc4 {[%emt 0:01:30]} 12. dxc4 {[%emt 0:00:30]} Ba6 {[%emt 0:00:00]} 13. b3 {[%emt 0:01:30]} Rad8 {[%emt 0:04:00]} 14. Bb2 {[%emt 0:02:30]} e5 {[%emt 0:03:30]} 15. Rad1 {[%emt 0:11:30]} Nd4 {[%emt 0:02:30]} 16. Nxd4 {[%emt 0:00:30]} cxd4 {[%emt 0:05:30]} 17. Qd2 {[%emt 0:01:30]} Nf6 {[%emt 0:09:30]} 18. Nxf6+ {[%emt 0:03:30]} Bxf6 {[%emt 0:00:30]} 19. f4 {[%emt 0:12:30]} Bb7 {[%emt 0:07:30]} 20. fxe5 {[%emt 0:01:30]} Bxe5 {[%emt 0:00:30]} 21. Bxb7 {[%emt 0:01:30]} Qxb7 {[%emt 0:00:00]} 22. Qf2 Rd7 {[%emt 0:05:00]} 23. Rd3 {[%emt 0:01:00]} f6 {[%emt 0:03:30]} 24. Rfd1 {[%emt 0:03:30]} Rfd8 {[%emt 0:02:30]} 25. Qg2 {[%emt 0:04:30]} Qa6 {[%emt 0:01:30]} 26. a3 {[%emt 0:00:30]} f5 {[%emt 0:09:30]} 27. c5 {[%emt 0:03:30]} Rd5 {[%emt 0:00:30]} 28. b4 {[%emt 0:00:30]} f4 {[%emt 0:00:30]} 29. Bc1 {[%emt 0:02:30]} fxg3 {[%emt 0:07:30]} 30. hxg3 {[%emt 0:00:30]} Bf6 {[%emt 0:00:30]} 31. Bf4 {[%emt 0:00:30]} Qe6 {[%emt 0:00:30]} 32. Qf2 {[%emt 0:00:30]} Re8 {[%emt 0:01:30]} 33. Bd2 {[%emt 0:12:30]} Re5 {[%emt 0:05:30]} 34. Rf1 {[%emt 0:03:45]} Re2 {[%emt 0:05:02]} 35. Qf3 {[%emt 0:03:02]} Qa2 {[%emt 0:05:08]} 36. Rf2 {[%emt 0:03:51]} Qb1+ {[%emt 0:00:40]} 37. Rf1 {[%emt 0:01:03]} Qc2 {[%emt 0:00:08]} 38. Bg5 {[%emt 0:03:32]} Rg2+ {[%emt 0:11:29]} 39. Qxg2 {[%emt 0:04:08]} Qxd3 {[%emt 0:00:05]} 40. Bxf6 {[%emt 0:00:00]} gxf6 {[%emt 0:01:09]} 41. Qd5+ {[%emt 0:00:38]} Kh8 {[%emt 0:00:30]} 42. Qf3 {[%emt 0:00:00]} Qxf3 {[%emt 0:00:34]} 43. Rxf3 {[%emt 0:00:00]} Kg7 {[%emt 0:00:54]} 44. Rd3 {[%emt 0:00:00]} Rd8 {[%emt 0:00:43]} 45. Kf2 {[%emt 0:00:05]} Kg6 {[%emt 0:00:16]} 46. Kf3 {[%emt 0:00:30]} Kf5 {[%emt 0:00:00]} 47. Rd1 {[%emt 0:00:23]} Ke5 {[%emt 0:00:47]} 48. c6 {[%emt 0:02:55]} a6 {[%emt 0:00:59]} 49. c7 {[%emt 0:01:14]} Rc8 {[%emt 0:00:30]} 50. Rc1 {[%emt 0:00:00]} f5 {[%emt 0:00:32]} 51. a4 {[%emt 0:01:12]} Kd6 {[%emt 0:00:40]} 52. Rc4 {[%emt 0:00:15]} Rxc7 {[%emt 0:00:00]} 53. Rxd4+ {[%emt 0:00:38]} Ke5 {[%emt 0:00:01]} 54. Rf4 {[%emt 0:00:04]} Rc3+ {[%emt 0:00:32]} 55. Kg2 {[%emt 0:00:07]} Ra3 {[%emt 0:00:15]} 56. b5 {[%emt 0:00:16]} axb5 {[%emt 0:00:07]} 57. axb5 {[%emt 0:00:30]} Rb3 {[%emt 0:00:00]} 58. Rh4 {[%emt 0:00:00]} Rb2+ {[%emt 0:00:07]} 59. Kh3 {[%emt 0:00:32]} Rxb5 {[%emt 0:00:23]} 60. Rxh7 {[%emt 0:00:00]} Ke4 {[%emt 0:00:17]} 61. Ra7 {[%emt 0:00:15]} Rb4 {[%emt 0:00:58]} 62. Ra3 {[%emt 0:00:14]} Rd4 {[%emt 0:00:00]} 63. Rb3 {[%emt 0:00:25]} Rd3 {[%emt 0:00:21]} 64. Rb4+ {[%emt 0:00:30]} Ke5 {[%emt 0:00:08]} 65. Rf4 {[%emt 0:00:08]} Rd2 {[%emt 0:00:22]} 66. Ra4 {[%emt 0:00:31]} Rf2 {[%emt 0:00:30]} 67. Ra5+ {[%emt 0:00:30]} Kf6 {[%emt 0:00:30]} 68. Ra3 {[%emt 0:00:30]} Kg5 {[%emt 0:00:00]} 69. Rb3 {[%emt 0:00:00]} Ra2 {[%emt 0:00:00]} 70. Rc3 {[%emt 0:00:00]} Re2 {[%emt 0:00:00]} 71. Ra3 {[%emt 0:00:00]} Re7 {[%emt 0:00:00]} 72. Rb3 {[%emt 0:00:13]} Rh7+ {[%emt 0:00:18]} 73. Kg2 {[%emt 0:00:30]} Re7 {[%emt 0:00:00]} 74. Kf3 {[%emt 0:00:00]} Re1 {[%emt 0:00:12]} 75. Kf2 {[%emt 0:00:00]} Re4 {[%emt 0:00:38]} 76. Kf3 {[%emt 0:00:10]} Ra4 {[%emt 0:00:00]} 1/2-1/2

[Event "Turkish Cup 2024"]
[Site "Denizli"]
[Date "2024.08.02"]
[Round "5"]
[White "Gunal, Yusuf Kursat"]
[Black "Korkmaz, Necmettin"]
[Result "1-0"]
[ECO "D11"]
[WhiteElo "1773"]
[BlackElo "2091"]
[Annotator "RC"]
[PlyCount "75"]
[EventDate "2024.08.01"]
[EventType "swiss"]
[EventCountry "TUR"]
[SourceTitle "playchess.com"]
[Source "ChessBase"]
[SourceQuality "1"]
[TimeControl "5400+30"]

1. d4 {[%emt 0:01:00]} d5 {[%emt 0:01:00]} 2. c4 {[%emt 0:00:00]} c6 {[%emt 0:03:30]} 3. Nf3 {[%emt 0:00:00]} Nf6 {[%emt 0:00:30]} 4. g3 {[%emt 0:00:00]} dxc4 {[%emt 0:06:30]} 5. Bg2 {[%emt 0:01:00]} b5 {[%emt 0:01:30]} 6. a4 {[%emt 0:02:30]} Bb7 {[%emt 0:11:30]} 7. O-O {[%emt 0:11:30]} e6 {[%emt 0:05:30]} 8. Qc2 {[%emt 0:17:30]} Be7 {[%emt 0:07:30]} 9. Rd1 {[%emt 0:04:30]} O-O {[%emt 0:04:30]} 10. Nc3 {[%emt 0:02:30]} b4 {[%emt 0:19:30]} 11. Ne4 {[%emt 0:00:30]} Nxe4 {[%emt 0:06:30]} 12. Qxe4 {[%emt 0:00:00]} Nd7 {[%emt 0:03:30]} 13. Bf4 {[%emt 0:04:00]} a5 {[%emt 0:03:30]} 14. Ne5 {[%emt 0:03:30]} Nf6 {[%emt 0:04:46]} 15. Qc2 {[%emt 0:00:30]} Nd5 {[%emt 0:01:18]} 16. Qxc4 {[%emt 0:02:30]} Nxf4 {[%emt 0:02:21]} 17. gxf4 {[%emt 0:00:00]} Qd6 {[%emt 0:03:07]} 18. e3 {[%emt 0:05:00]} Rfc8 {[%emt 0:01:55]} 19. Rac1 {[%emt 0:02:30]} Rc7 {[%emt 0:02:13]} 20. f5 {[%emt 0:01:30]} Bf6 {[%emt 0:02:33]} 21. fxe6 {[%emt 0:00:30]} fxe6 {[%emt 0:00:30]} 22. f4 {[%emt 0:00:30]} g5 {[%emt 0:02:20]} 23. Ng4 {[%emt 0:04:30]} Bg7 {[%emt 0:02:07]} 24. fxg5 {[%emt 0:04:30]} Ba6 {[%emt 0:00:15]} 25. Qc2 {[%emt 0:01:30]} b3 {[%emt 0:00:31]} 26. Qe4 {[%emt 0:03:30]} Be2 {[%emt 0:00:24]} 27. Re1 {[%emt 0:00:00]} Bxg4 {[%emt 0:01:05]} 28. Qxg4 {[%emt 0:00:00]} e5 {[%emt 0:00:22]} 29. d5 {[%emt 0:00:30]} c5 {[%emt 0:01:11]} 30. Qc4 {[%emt 0:04:30]} Rb8 {[%emt 0:00:19]} 31. Bh3 {[%emt 0:01:30]} Rb4 {[%emt 0:00:44]} 32. Be6+ {[%emt 0:00:30]} Kh8 {[%emt 0:00:00]} 33. Qe2 {[%emt 0:00:30]} Rh4 {[%emt 0:02:16]} 34. Rc4 {[%emt 0:00:30]} e4 {[%emt 0:00:18]} 35. Qg2 {[%emt 0:07:27]} Qe5 {[%emt 0:00:38]} 36. Rf1 {[%emt 0:00:46]} h5 {[%emt 0:00:50]} 37. gxh6 {[%emt 0:01:26]} Bxh6 {[%emt 0:00:59]} 38. Qg8# {[%emt 0:00:04]} 1-0

[Event "Turkish Cup 2024"]
[Site "Denizli"]
[Date "2024.08.02"]
[Round "5"]
[White "Sarbak, Omer"]
[Black "Dirikolu, Deniz"]
[Result "0-1"]
[ECO "C60"]
[WhiteElo "1771"]
[BlackElo "1911"]
[Annotator "RC"]
[PlyCount "84"]
[EventDate "2024.08.01"]
[EventType "swiss"]
[EventCountry "TUR"]
[SourceTitle "playchess.com"]
[Source "ChessBase"]
[SourceQuality "1"]
[TimeControl "5400+30"]

1. e4 {[%emt 0:01:00]} e5 {[%emt 0:01:00]} 2. Nf3 {[%emt 0:00:30]} Nc6 {[%emt 0:00:30]} 3. Bb5 {[%emt 0:00:00]} g6 {[%emt 0:00:00]} 4. d4 {[%emt 0:00:00]} exd4 {[%emt 0:00:00]} 5. Bg5 {[%emt 0:00:30]} Be7 {[%emt 0:00:30]} 6. Bxe7 {[%emt 0:00:00]} Qxe7 {[%emt 0:00:00]} 7. Bxc6 {[%emt 0:00:00]} dxc6 {[%emt 0:00:00]} 8. Qxd4 {[%emt 0:00:30]} Nf6 {[%emt 0:00:00]} 9. Nc3 {[%emt 0:00:00]} Bg4 {[%emt 0:00:00]} 10. Nd2 {[%emt 0:00:00]} b6 {[%emt 0:00:30]} 11. h3 {[%emt 0:00:00]} Bd7 {[%emt 0:00:00]} 12. O-O-O {[%emt 0:00:00]} O-O-O {[%emt 0:00:00]} 13. Qe3 {[%emt 0:01:30]} Rhe8 {[%emt 0:00:30]} 14. g4 {[%emt 0:07:30]} Kb7 {[%emt 0:17:30]} 15. Rhe1 {[%emt 0:03:30]} Bc8 {[%emt 0:00:30]} 16. a3 {[%emt 0:09:30]} a5 {[%emt 0:02:30]} 17. Qg3 {[%emt 0:33:30]} Nd7 {[%emt 0:25:30]} 18. f3 {[%emt 0:12:30]} Nc5 {[%emt 0:04:30]} 19. Nc4 {[%emt 0:01:30]} Be6 {[%emt 0:00:30]} 20. Ne3 {[%emt 0:00:30]} b5 {[%emt 0:08:30]} 21. Ne2 {[%emt 0:03:30]} b4 {[%emt 0:03:30]} 22. axb4 {[%emt 0:06:05]} axb4 {[%emt 0:00:30]} 23. Nd4 {[%emt 0:00:30]} Ra8 {[%emt 0:00:30]} 24. Kd2 {[%emt 0:00:30]} Ra2 {[%emt 0:00:30]} 25. Ke2 {[%emt 0:00:30]} b3 {[%emt 0:04:30]} 26. Kf1 {[%emt 0:07:16]} Rxb2 {[%emt 0:01:30]} 27. Rb1 {[%emt 0:02:52]} Rxb1 {[%emt 0:03:30]} 28. Rxb1 {[%emt 0:00:01]} Qf6 {[%emt 0:00:30]} 29. e5 {[%emt 0:02:02]} Qd8 {[%emt 0:00:00]} 30. c3 {[%emt 0:02:24]} f6 {[%emt 0:08:00]} 31. exf6 {[%emt 0:00:58]} Qxf6 {[%emt 0:00:30]} 32. Kg2 {[%emt 0:01:18]} Bg8 {[%emt 0:01:49]} 33. Nf1 {[%emt 0:03:52]} Ra8 {[%emt 0:02:01]} 34. Kg1 {[%emt 0:02:05]} Ra2 {[%emt 0:00:56]} 35. g5 {[%emt 0:00:40]} Qd6 {[%emt 0:00:45]} 36. Qxd6 {[%emt 0:00:50]} cxd6 {[%emt 0:00:01]} 37. Ne3 {[%emt 0:00:27]} b2 {[%emt 0:00:44]} 38. Nd1 {[%emt 0:00:37]} Na4 {[%emt 0:00:08]} 39. Nc2 {[%emt 0:00:50]} Bb3 {[%emt 0:00:07]} 40. Nde3 {[%emt 0:00:40]} Bxc2 {[%emt 0:00:30]} 41. Nxc2 {[%emt 0:00:30]} Nxc3 {[%emt 0:00:30]} 42. Nb4 {[%emt 0:00:30]} Ra1 {[%emt 0:00:30]} 0-1